Cogmind - Beta 15 @@@ ROGUE MODE // 2025.08.10 @ 19:26:21 Player: Zoe Result: Destroyed by Y-45 Defender with Beam Rifle Performance ------------- Evolutions (1) 500 Regions Visited (2) 400 Robots Destroyed (25) 125 Value Destroyed (677) 677 Prototype IDs (0) 0 Alien Tech Used (0) 0 Bonus (2) 2 TOTAL SCORE: 1704 Bonus ------- High Alert Combat Kills 2 Cogmind --------- Core Integrity 0/400 Matter 187/300 Energy 45/100 System Corruption 0% Temperature Critical (796) Movement Core (450) Ox8 Location -9/Materials Parts ------- > --- POWER (1) -------- (None) > --- PROPULSION (2) --- (None) > --- UTILITY (4) ------ Large Storage Unit Visual Processing Unit Hardened Light Armor Plating > --- WEAPON (2) ------- Mining Claw > --- INVENTORY (15) --- Light Ion Engine Light Treads Light Treads Large Storage Unit Hardened Light Armor Plating Light Assault Rifle Heavy Assault Rifle Plasma Cutter Peak State ------------ > --- POWER ------------ Ion Engine > --- PROPULSION ------- Improved Treads Improved Treads > --- UTILITY ---------- Large Storage Unit Visual Processing Unit Improved Terrain Scanner Hardened Light Armor Plating > --- WEAPON ----------- Beam Cannon Particle Cannon > --- INVENTORY -------- Light Ion Engine Light Treads Light Treads Large Storage Unit Light Assault Rifle Heavy Assault Rifle Grenade Launcher Plasma Cutter Mining Claw [Rating: 17] Favorites ----------- Power Ion Engine Engine Ion Engine Propulsion Improved Treads Treads Improved Treads Utility Improved Terrain Scanner Device Improved Terrain Scanner Storage Large Storage Unit Processor Visual Processing Unit Protection Hardened Light Armor Plating Weapon Assault Rifle Energy Gun Medium Laser Energy Cannon Particle Cannon Ballistic Gun Assault Rifle Launcher Rocket Launcher Slashing Weapon Mining Claw Build | -11 -10 -9 ------- Run | Yrd Mat Mat Slots Evolved 2 | . . 2 Power . | . . . Propulsion . | . . . Utility 2 | . . 2 Weapon . | . . . Parts Attached 19 | 5 7 7 Power 1 | 1 . . Engine 1 | 1 . . Core . | . . . Reactor . | . . . Propulsion 5 | 2 2 1 Treads 5 | 2 2 1 Leg . | . . . Wheel . | . . . Hover . | . . . Flight . | . . . Utility 6 | 1 3 2 Device 2 | . 2 . Storage 2 | 1 1 . Processor 1 | . . 1 Hackware . | . . . Protection 1 | . . 1 Artifact . | . . . Weapon 7 | 1 2 4 Energy Gun 1 | . 1 . Energy Cannon 2 | . . 2 Ballistic Gun 2 | 1 1 . Ballistic Cannon . | . . . Launcher 1 | . . 1 Special Weapon . | . . . Impact Weapon . | . . . Slashing Weapon 1 | . . 1 Piercing Weapon . | . . . Special Melee Weapon . | . . . Unidentified Prototypes . | . . . Parts Lost 9 | . 2 7 Power 1 | . . 1 Propulsion 3 | . 1 2 Utility 2 | . 1 1 Weapon 3 | . . 3 Highest Loss Streak 7 | . 2 7 To Critical Strikes . | . . . Average Backups 7 | 5 7 8 Power . | . 1 1 Propulsion 1 | 1 . . Utility 1 | . 1 1 Weapon 3 | 2 3 4 Tool/Special . | . . . Unused Backups 12 | . 3 9 Power 1 | . . 1 Propulsion 4 | . 2 2 Utility 2 | . . 2 Weapon 4 | . 1 3 Tool/Special 1 | . . 1 Average Slot Usage (%) 89 | . 94 85 Engine 12 | . 14 11 Treads 23 | . 27 20 Device 10 | . 9 10 Storage 12 | . 14 11 Processor 3 | . . 5 Protection 2 | . . 4 Energy Gun 4 | . 8 . Energy Cannon 6 | . . 12 Ballistic Gun 13 | . 19 9 Peak Build Rating 17 | 6 10 17 Average Rating 9 | 4 8 13 On Entrance 5 | . 6 10 Naked Turns . | . . . Heaviest Build 38 | 12 29 38 Greatest Support 46 | 40 43 46 Greatest Overweight (x) 3 | 3 . 1 Average Overweight (x) . | . . . Largest Inventory Capacity 15 | 8 15 15 Average Capacity 11 | 7 9 15 Most Carried 11 | 8 8 11 Average Carried 7 | 5 7 8 Final Capacity 15 | 8 15 15 Final Carried 8 | 8 7 8 Class Distribution -------------------- 100% | Mutant Dominant Class ---------------- Mutant | -10/Materials Mutant | -9/Materials Resources | -11 -10 -9 ----------- Run | Yrd Mat Mat Matter Collected 465 | 283 126 56 Remotely . | . . . Salvage Created 870 | 145 391 334 Parts 50 | 14 17 19 Haulers Intercepted 1 | . 1 . Recyclers Shooed . | . . . Parts Field Recycled . | . . . Retrieved Matter . | . . . Parts Self-Destructed . | . . . Prevented . | . . . Kills | -11 -10 -9 ------- Run | Yrd Mat Mat Combat Hostiles Destroyed 15 | . 8 7 Guns 8 | . 8 . Cannons 7 | . . 7 Classes Destroyed 9 | 2 5 2 Worker 1 | . 1 . Tunneler 3 | 3 . . Hauler 1 | . 1 . Recycler 3 | 1 2 . Operator 1 | . 1 . Watcher 1 | . . 1 Swarmer 3 | . 3 . Grunt 10 | . 5 5 Sentry 2 | . . 2 Best Kill Streak 7 | 2 7 3 Combat Bots Only 3 | . 3 3 Max Kills in Single Turn 4 | 1 4 1 Gunslinging 1 | . 1 . Exploded . | . . . Melee . | . . . Uniques/NPCs Destroyed . | . . . Combat | -11 -10 -9 -------- Run | Yrd Mat Mat Hostile Shots Fired 92 | . 35 57 Missed 19 | . 10 9 Hits 73 | . 25 48 Projectile 73 | . 25 48 Critical Strikes 2 | . . 2 Damage Taken 1318 | . 410 908 Core 408 | . 6 402 Absorbed by Shields . | . . . Core Remaining (%) 98 | 100 97 . Volleys Fired 62 | 11 23 28 Largest 2 | 1 2 2 Hottest 128 | 20 70 128 Shots Fired 105 | 11 46 48 Gun 60 | 11 46 3 Cannon 43 | . . 43 Launcher 2 | . . 2 Special . | . . . Kinetic 37 | 11 23 3 Thermal 66 | . 23 43 Explosive 2 | . . 2 Electromagnetic . | . . . Robot Hit Streak 11 | 2 11 9 Robot Miss Streak 3 | 2 3 2 Penetration Max . | . . . Secondary Targets 1 | . 1 . Max Gunslinging Chain 1 | . 1 . Shots Hit Robots 70 | 7 32 31 Core Hits 35 | 4 17 14 Critical Kills . | . . . Critical Parts Destroyed . | . . . Critical Strikes 1 | . 1 . Burn 1 | . 1 . Melee Attacks 1 | . . 1 Impact . | . . . Slashing 1 | . . 1 Piercing . | . . . Sneak Attacks . | . . . Combat Hostiles . | . . . Follow-up Attacks . | . . . Damage Inflicted 1743 | 87 941 715 Guns 492 | 87 398 7 Cannons 563 | . . 563 Explosions 688 | . 543 145 Melee . | . . . Ramming . | . . . Kinetic 280 | 87 186 7 Thermal 1318 | . 755 563 Explosive 145 | . . 145 Electromagnetic . | . . . Impact . | . . . Slashing . | . . . Piercing . | . . . Highest Corruption . | . . . Average Corruption . | . . . Corruption Purged . | . . . Corruption Blocked . | . . . Overload Shots . | . . . Overflow Damage 150 | . 150 . Projectiles . | . . . Explosions 150 | . 150 . Melee . | . . . Knockbacks . | . . . Impact . | . . . Kinetic . | . . . Secondary . | . . . Self-Inflicted Damage 215 | . 170 45 Shots 4 | . 2 2 Rammed 1 | . 1 . Targets Rammed 1 | . 1 . Kicked . | . . . Crushed . | . . . Highest Temperature 818 | . 111 818 Average Temperature 176 | . 43 273 Received Heat Transfer 402 | . 90 312 Effects 30 | . . 30 Shutdowns 3 | . . 3 Energy Bleed 8 | . . 8 Interference 2 | . . 2 Matter Decay 2 | . . 2 Damage (minor) 3 | . . 3 Damage (major) 9 | . . 9 Damage (core) 3 | . . 3 Siege Activations . | . . . Martial Activations . | . . . Shielding Activations . | . . . Robots Disrupted . | . . . Combat Hostiles . | . . . Robots Corrupted . | . . . Combat Hostiles . | . . . Parts Fried . | . . . Impact Corruptions . | . . . Robots Melted . | . . . Combat Hostiles . | . . . Parts Melted 5 | . 1 4 Heat Transferred 2163 | . 1053 1110 Parts Sabotaged . | . . . Parts Stolen . | . . . Parts Stripped . | . . . Power Chain Reactions . | . . . Alert | -11 -10 -9 ------- Run | Yrd Mat Mat Maximum Alert Level 2 | . 2 . Low Security (%) 74 | 100 35 100 Level 1 24 | . 60 . Level 2 1 | . 3 . Level 3 . | . . . Level 4 . | . . . Level 5 . | . . . High Security . | . . . Max Security . | . . . Peak Influence 404 | 5 404 136 Initial 136 | . . 136 Average 130 | 1 238 81 Influence Increases 732 | 20 496 216 Destroy 0b10 Robot/C 300 | . 160 140 Destroy 0b10 Robot/NC 50 | 20 25 5 Destroy Leader 84 | . 32 52 Successful Hack 30 | . 25 5 Disable Machine 195 | . 195 . Destroy Structure 73 | . 59 14 Influence Decreases 648 | 20 172 456 Entered New Map 188 | . . 188 Time Decay 370 | 20 152 198 Lost Part 90 | . 20 70 Squads Dispatched 4 | . 2 2 Investigation 4 | . 2 2 Extermination . | . . . Reinforcement . | . . . Assault . | . . . Garrison . | . . . Intercept . | . . . Searches Triggered . | . . . Construction Impeded . | . . . Haulers Reinforced . | . . . Active Scanning Responses . | . . . Cargo Convoy Interrupts . | . . . Stealth | -11 -10 -9 --------- Run | Yrd Mat Mat Distress Signals . | . . . Communications Jammed . | . . . Distress Signals . | . . . Times Spotted 22 | . 8 14 Peak Tracking Total 7 | . 3 7 Tactical Retreats . | . . . Traps | -11 -10 -9 ------- Run | Yrd Mat Mat Traps Triggered . | . . . Indirectly . | . . . Trap Hack Attempts . | . . . Triggered . | . . . Disarmed 6 | . 6 . Reprogrammed . | . . . Reused . | . . . Traps Extracted . | . . . Installed . | . . . Triggered . | . . . Objects Rigged 22 | . 22 . Exploded 1 | . 1 . Machines | -11 -10 -9 ---------- Run | Yrd Mat Mat Machines Disabled 13 | . 13 . Max in Single Turn 13 | . 13 . Machines Repaired . | . . . Machines Dismantled . | . . . Machines Sabotaged . | . . . Overloaded Fab Kills . | . . . Hacking | -11 -10 -9 --------- Run | Yrd Mat Mat Machines Accessed 8 | . 5 3 Terminals 6 | . 3 3 Fabricators . | . . . Repair Stations . | . . . Recycling Units 2 | . 2 . Scanalyzers . | . . . Garrison Access . | . . . Total Hacks 32 | . 23 9 Successful 15 | . 13 2 Failed 17 | . 10 7 Catastrophic 1 | . . 1 Database Lockouts . | . . . Manual 23 | . 15 8 Terminals 24 | . 15 9 Fabricators . | . . . Repair Stations . | . . . Recycling Units 8 | . 8 . Scanalyzers . | . . . Garrison Access . | . . . Terminal Hacks 2 | . 1 1 Record 1 | . . 1 Disarm Traps 1 | . 1 . Fabricator Hacks . | . . . Repair Station Hacks . | . . . Recycling Unit Hacks 3 | . 3 . Report Inventory 1 | . 1 . Retrieve Components 2 | . 2 . Scanalyzer . | . . . Garrison Access Hacks . | . . . Unauthorized Hacks 10 | . 9 1 Terminals 8 | . 7 1 Track 1 | . 1 . Botnet 4 | . 3 1 Detonate 2 | . 2 . Operators 1 | . 1 . Fabricators . | . . . Repair Stations . | . . . Recycling Units 2 | . 2 . Reject 2 | . 2 . Scanalyzers . | . . . Garrison Access . | . . . Data Cores Recovered . | . . . Used . | . . . Hacking Detections 8 | . 5 3 Full Trace Events 8 | . 5 3 Feedback Events . | . . . Feedback Blocked . | . . . Robot Schematics Acquired . | . . . Robots Built . | . . . Authchips . | . . . Time . | . . . Total Robot Build Rating . | . . . Part Schematics Acquired . | . . . Parts Built . | . . . Authchips . | . . . Time . | . . . Total Part Build Rating . | . . . Parts Repaired . | . . . Time . | . . . Parts Recycled . | . . . Recycled Matter . | . . . Retrieved Matter . | . . . Retrieved Components 2 | . 2 . Parts Scanalyzed . | . . . Part Schematics Acquired . | . . . Parts Damaged . | . . . Bothacking | -11 -10 -9 ------------ Run | Yrd Mat Mat Used RIF Installer . | . . . Robots Hacked . | . . . Non-combat . | . . . Combat . | . . . Robot Hacks Applied . | . . . Relay Couplers Released . | . . . Fabnet Peak Effective % . | . . . Robots Rewired . | . . . Allies Hacked . | . . . Hacks Repelled . | . . . Allies | -11 -10 -9 -------- Run | Yrd Mat Mat Total Allies . | . . . Largest Group . | . . . Highest-Rated Group . | . . . Highest-Rated Ally . | . . . Total Orders . | . . . Ally Attacks . | . . . Total Damage . | . . . Kills . | . . . Allies Corrupted . | . . . Allies Melted . | . . . Intel | -11 -10 -9 ------- Run | Yrd Mat Mat Active Infowar (turns) 660 | . 265 395 Optics 213 | . . 213 Terrain 530 | . 143 387 Seismic 122 | . 122 . Robot Analysis Total . | . . . Derelict Logs Recovered . | . . . Drone Launches . | . . . Drone Recoveries . | . . . Exploration | -11 -10 -9 ------------- Run | Yrd Mat Mat Turns Passed 922 | 152 366 404 Spaces Moved 428 | 75 174 179 Core 13 | 13 . . Treads 415 | 62 174 179 Legs . | . . . Wheels . | . . . Hover . | . . . Flight . | . . . Fastest Speed 50 | 50 160 160 Average Speed 158 | 150 160 160 Slowest Speed 240 | 200 160 240 Overloaded Moves . | . . . Propulsion Burnouts . | . . . Robots Hopped . | . . . Potential Cave-ins . | . . . Cave-ins Triggered . | . . . Exploration Rate (%) 19 | 5 30 22 Regions Visited 2 Branch Regions . Pre-discovered Areas . | . . . Known Exits Taken . | . . . Unknown Exits Taken 2 | 1 1 . Scrap Searched . | . . . Spaces Dug . | . . . Terrain Destroyed 70 | . 59 11 Melee . | . . . Projectile . | . . . AOE 70 | . 59 11 Terrain Rammed . | . . . Walls Destroyed . | . . . Machines Disabled . | . . . Actions | -11 -10 -9 --------- Run | Yrd Mat Mat Total 567 | 103 217 247 Wait 18 | . 1 17 Move 426 | 74 173 179 Hop . | . . . Pick Up 30 | 13 7 10 Fast Attach . | . . . Attach 13 | 5 4 4 Detach . | . . . Swap 6 | . 3 3 Drop 10 | . 5 5 Fire 62 | 11 23 28 Melee 1 | . . 1 Ram . | . . . Kick . | . . . Crush 1 | . 1 . Escape Stasis . | . . . Rewire . | . . . Trap . | . . . Miscellaneous . | . . . Route ------- -11/Scrapyard -10/Materials -9/Materials History --------- Turn | Location | Event 37 | -11/Scrapyard | Discovered new exit (range 16) 153 | -11/Scrapyard | Entered Materials 308 | -10/Materials | Build established: Mutant 338 | -10/Materials | Discovered new exit (range 11) 519 | -10/Materials | Entered another Materials area 519 | -9/Materials | Evolved 2 slots: Utility x2 912 | -9/Materials | Core integrity fell below 50% 921 | -9/Materials | Core integrity fell below 20% 923 | -9/Materials | Destroyed by Y-45 Defender with Beam Rifle Last Messages --------------- 00914_ Overheating: System interference. 00914_ Visual Processing Unit temporarily disabled. 00914_ Beam Cannon temporarily disabled. 00915_ Overheating: Energy bleed (-10). 00916_ Overheating: Lrg. Storage Unit damaged (-88). 00916_ K-01 Serf collects debris. 00917_ Overheating: Lrg. Storage Unit damaged (-32). 00917_ Overheating: Rocket Launcher damaged (-23). 00917_ Overheating: Beam Cannon damaged (-8). 00917_ Beam Cannon destroyed. 00918_ Overheating: Matter decay (-27). 00920_ Overheating: Lrg. Storage Unit damaged (-11). 00920_ Ion Engine destroyed. 00920_ Rocket Launcher destroyed. 00921_ Overheating: Core damaged (-64). Map ----- +----------------------------------------------------+ | ???????????????????????#?#?#??????# ########### | | ????????????????????????#?#???????# #??????#??? | | ?????????????????#?????????#??#?### #???##?#??? | | ???????????????#???????????#???#?## ##########? | | ??????????????????#?????########### # ## | | ????????????????????????# ] # # """ #? | | ???????????????????#????# #* # """ #? | | ????????????????????????# "" # #[ """ #? | | ??????????????????#???#?# ! "" + %+ """ #? | | ??????????????????#?????# ! T" # #[ #? | | ?????????????????#?#?#?## "" # # #? | | ?????????????########### "" # # #? | | ?????????????# = ### # # #? | | ?????????????# =#?#+######### ##########? | | ?????????????# ### ###??#?## ##? ##? | | ?????????????# # ####### #? #?? | | ?????????????# ! # # #?? | | ?????????????# ! [ + T #??? | | ?????????????# # # ##?????? | | ?????????????# # ######[ #?????????? | | ?????????????# = ############%= #?????????? | | ?????????? ??##########?# [% ru #??#??????? | | ????????? ########### "" ######?????????? | | ????????? ""= #??????????????? | | ????????# ""%=#??????????????? | | ?????????? % @ k #??????????????? | | ?????????? ??????+### ggY% "" #??????????????? | | ??????????????????T?# % Y "" #??????????????? | | ??????????????#?????# "" #??????????????? | | ?????????????#??????# #?#?????#??????? | | ????????????????????# ######??????????????? | | ???????????#????????# ####??????????????#????? | | ????????????????????# #?#???#?????????????????? | | ????????????????????# ?????#???#??????????????? | | ??????????????????? # ????????????????????????? | | ????????????????? ??# ??????????????#?????????? | | ????????????????????# ???#????????????????????? | | ?????????????? ?????#a ?#????????????#??????????? | | ????????????????????# ??????????#?????????????? | | ?????????????????? ?? ?????????????????????????? | | ????????????????????????????????????????????????? | | ??????????????????"?????????????????????????????? | | ????????????????????????????????????????????????? | | ????????????????????????????????????????????????? | | ????????????????????????????????????????????????? | | ????????????????????????????????????????????????? | | ????????????????????????????????????????????????? | | ????????????????????????????????????????????????? | | ????????????????????????????????????????????????? | | ????????????????????????????????????????????????? | +----------------------------------------------------+ Best States ------------- Heat Dissipation 28 Energy Generation 10 Energy Capacity 250 Matter Stores 300 Matter Capacity 300 Sight Range 18 Terrain Scan Range 16 Terrain Scan Density 10 Armor Coverage 150 Evasion (%) 40 Recoil Reduction 2 Item Schematics ----------------- None Robot Schematics ------------------ None Fabricated ------------ Nothing Repaired ---------- Nothing Alien Tech Used ----------------- None Achievements -------------- It Was An Accident, I Swear Challenges ------------ None Game ------ Seed AblativeVampiricSpoofer Manual? 0 Play Time 00:12:42 Cumulative 48.2 hours Start 2025.08.10 @ 19:17:13 End 2025.08.10 @ 19:26:21 Sessions 1 Manual Loads 0 Difficulty Rogue Special Mode None Game No. 94 Rogue 91 Adventurer 3 Explorer 0 Win Type - Total 0 Types 0/0/0/0/0/0/0/0/0/0 Lore% 29 Gallery% 31 Achievement% 31 Wizard Run 0 Options --------- Layout 1 ASCII 0 Keyboard 0 Movement Mouse Keybinds 0 Fullscreen 1 Font 24/Smallcaps Map View 50x35 Zoom Use 0% Tactical HUD 1 Map Filters NONE Filters NONE Steam 1 RUN: cfeb33b1-05bd-447b-ac6d-3d4acdf1caf5